lending/lending_fUSD_20240120
["ID","MTS","AMOUNT","RATE_DAILY","PERIOD"]
[312310278,1705769461054,-150.91,0.00039,2]
[312310279,1705769461064,-150.91,0.00039,2]
[312310280,1705769461073,-150.91,0.00039,2]
[312310281,1705769461084,-150.91,0.00039,2]
[312310282,1705769461094,-150.91,0.00039,2]
[312310283,1705769461104,-150.91,0.00039,2]
[312310284,1705769461114,-150.91,0.00039,2]
[312310285,1705769461124,-150.91,0.00039,2]
[312310286,1705769461134,-150.91,0.00039,2]
[312310287,1705769461143,-150.91,0.00039,2]
[312310288,1705769461152,-150.91,0.00039,2]
[312310289,1705769461162,-150.91,0.00039,2]
[312310290,1705769461172,-150.91,0.00039,2]
[312310291,1705769461182,-150.91,0.00039,2]
[312310292,1705769461191,-150.91,0.00039,2]
[312310293,1705769461201,-150.91,0.00039,2]
[312310295,1705769461210,-150.91,0.00039,2]
[312310296,1705769461220,-150.91,0.00039,2]
[312310297,1705769461230,-150.91,0.00039,2]
[312310298,1705769461240,-150.91,0.00039,2]
[312310299,1705769461249,-150.91,0.00039,2]
[312310300,1705769461258,-150.91,0.00039,2]
[312310301,1705769461269,-150.91,0.00039,2]
[312310302,1705769461278,-150.91,0.00039,2]
[312310303,1705769461287,-150.91,0.00039,2]
[312310304,1705769461296,-150.91,0.00039,2]
[312310305,1705769461306,-150.91,0.00039,2]
[312310306,1705769461315,-150.91,0.00039,2]
[312310307,1705769461324,-150.91,0.00039,2]
[312310308,1705769461333,-150.91,0.00039,2]
[312310309,1705769461470,-151.0,0.00039021,4]
[312310310,1705769461488,-1000.0,0.0003907,2]
[312310311,1705769461498,-400.0,0.0003907,2]
[312310312,1705769461507,-231.13125049,0.00039082,2]
[312310313,1705769461516,-1046.075,0.000391,2]
[312310314,1705769461527,-150.1,0.000391,2]
[312310315,1705769461537,-200.0,0.000391,7]
[312310316,1705769461546,-1000.0,0.000391,7]
[312310317,1705769461556,-3000.0,0.000391,29]
[312310318,1705769461565,-500.0,0.00039107,5]
[312310319,1705769461575,-500.0,0.00039107,5]
[312310320,1705769461584,-500.0,0.00039107,5]
[312310321,1705769461594,-500.0,0.00039107,5]
[312310322,1705769461603,-500.0,0.00039107,5]
[312310323,1705769461612,-500.0,0.00039107,5]
[312310324,1705769461622,-282.0,0.00039107,5]
[312310325,1705769461631,-500.0,0.00039107,5]
[312310326,1705769461640,-500.0,0.00039107,5]
[312310327,1705769461649,-644.0,0.00039107,5]
[312310328,1705769461659,-3000.0,0.0003911,29]
[312310329,1705769461668,-5489.175695,0.0003912,29]
[312310330,1705769461678,-8108.11642043,0.00039129,8]
[312310331,1705769461687,-815.39,0.00039229,2]
[312310332,1705769461698,-1000.0,0.0003926,2]
[312310333,1705769461707,-153.84,0.00039269,2]
[312310334,1705769461717,-200.0,0.000393,7]
[312310335,1705769461726,-152.0,0.00039375,3]
[312310336,1705769461736,-84175.0,0.00039379,20]
[312310337,1705769461746,-1741.0,0.00039379,20]
[312310338,1705769461757,-428.0,0.00039379,20]
[312310339,1705769461766,-1020.0,0.00039424,11]
[312310340,1705769461776,-207.0,0.00039449,18]
[312310341,1705769461785,-200.0,0.00039452,15]
[312310342,1705769461794,-200.0,0.000395,7]
[312310343,1705769461804,-309.19,0.0003951,2]
[312310344,1705769461813,-256.13,0.0003951,2]
[312310345,1705769461822,-941.64,0.00039612,2]
[312310346,1705769461833,-941.64,0.00039612,2]
[312310347,1705769461843,-941.64,0.00039612,2]
[312310348,1705769461853,-486.88,0.00039612,2]
[312310349,1705769461862,-941.64,0.00039612,2]
[312310350,1705769461871,-941.64,0.00039612,2]
[312310351,1705769461880,-401.86,0.00039612,2]
[312310352,1705769461890,-401.86,0.00039612,2]
[312310353,1705769461899,-941.64,0.00039612,2]
[312310354,1705769461909,-941.64,0.00039612,2]
[312310355,1705769461918,-401.86,0.00039612,2]
[312310356,1705769461927,-401.86,0.00039612,2]
[312310357,1705769461936,-941.64,0.00039612,2]
[312310358,1705769461946,-401.86,0.00039612,2]
[312310359,1705769461955,-401.86,0.00039612,2]
[312310360,1705769461964,-401.86,0.00039612,2]
[312310361,1705769461973,-150.0,0.00039654,2]
[312310362,1705769461983,-200.0,0.00039679,20]
[312310363,1705769461992,-800.0,0.00039679,15]
[312310364,1705769462002,-4535.82,0.000397,7]
[312310365,1705769462012,-2247.66,0.000397,7]
[312310366,1705769462022,-11054.48,0.000397,7]
[312310367,1705769462031,-200.0,0.000397,7]
[312310368,1705769462042,-1000.0,0.000397,2]
[312310369,1705769462051,-25285.71,0.000397,4]
[312310370,1705769462061,-3024.43,0.00039726,2]
[312310371,1705769462070,-84175.0,0.00039781,20]
[312310372,1705769462080,-1741.0,0.00039781,20]
[312310373,1705769462089,-428.0,0.00039781,20]
[312310374,1705769462099,-1000.0,0.000398,30]
[312310375,1705769462109,-200.0,0.000398,13]
[312310376,1705769462118,-500.0,0.000398,2]
[312310377,1705769462128,-500.0,0.000398,2]
[312310378,1705769462137,-500.0,0.000398,2]
[312310379,1705769462147,-500.0,0.000398,2]
[312310380,1705769462156,-500.0,0.000398,2]
[312310381,1705769462166,-269.9145,0.000398,2]
[312310382,1705769462176,-1000.0,0.000398,2]
[312310383,1705769462186,-1000.0,0.000398,2]
[312310384,1705769462195,-1000.0,0.000398,2]
[312310385,1705769462205,-1000.0,0.000398,2]
[312310386,1705769462215,-1000.0,0.000398,2]
[312310387,1705769462225,-1000.0,0.000398,2]
[312310388,1705769462234,-1000.0,0.000398,2]
[312310389,1705769462243,-1000.0,0.000398,2]
[312310390,1705769462253,-1000.0,0.000398,2]
[312310391,1705769462262,-1000.0,0.000398,2]
[312310392,1705769462272,-1000.0,0.000398,2]
[312310393,1705769462281,-1000.0,0.000398,2]
[312310394,1705769462290,-1000.0,0.000398,2]
[312310395,1705769462299,-1000.0,0.000398,2]
[312310396,1705769462309,-1000.0,0.000398,2]
[312310397,1705769462319,-1000.0,0.000398,2]
[312310398,1705769462328,-1000.0,0.000398,2]
[312310399,1705769462338,-1000.0,0.000398,2]
[312310400,1705769462347,-1000.0,0.000398,2]
[312310401,1705769462356,-1000.0,0.000398,2]
[312310402,1705769462366,-1000.0,0.000398,2]
[312310403,1705769462376,-1000.0,0.000398,2]
[312310404,1705769462385,-1000.0,0.000398,2]
[312310405,1705769462394,-1000.0,0.000398,2]
[312310406,1705769462404,-1000.0,0.000398,2]
[312310407,1705769462414,-1000.0,0.000398,2]
[312310408,1705769462423,-1000.0,0.000398,2]
[312310409,1705769462433,-1000.0,0.000398,2]
[312310410,1705769462442,-1000.0,0.000398,2]
[312310411,1705769462451,-1000.0,0.000398,2]
[312310412,1705769462460,-1000.0,0.000398,2]
[312310413,1705769462470,-1000.0,0.000398,2]
[312310414,1705769462480,-1000.0,0.000398,2]
[312310415,1705769462489,-1000.0,0.000398,2]
[312310416,1705769462498,-1000.0,0.000398,2]
[312310417,1705769462507,-1000.0,0.000398,2]
[312310418,1705769462515,-1000.0,0.000398,2]
[312310419,1705769462525,-1000.0,0.000398,2]
[312310420,1705769462535,-431.8753,0.000398,2]
[312310421,1705769462544,-151.0,0.00039817,2]
[312310422,1705769462554,-154.27609843,0.00039824,6]
[312310423,1705769462565,-26353.20121129,0.00039865,5]
[312310424,1705769462574,-26353.20121129,0.00039865,5]
[312310425,1705769462583,-26353.20121129,0.00039865,5]
[312310426,1705769462592,-26353.20121129,0.00039865,5]
[312310427,1705769462601,-26353.20121129,0.00039865,5]
[312310428,1705769462610,-26353.20121129,0.00039865,5]
[312310429,1705769462619,-26353.20121129,0.00039865,5]
[312310430,1705769462628,-26353.20121129,0.00039865,5]
[312310431,1705769462638,-26353.20121129,0.00039865,5]
[312310432,1705769462647,-26353.20021129,0.00039865,5]
[312310433,1705769462656,-1016.45455562,0.00039865,5]
[312310434,1705769462666,-9891.5706653,0.00039868,2]
[312310435,1705769462675,-151.0,0.00039898,7]
[312310436,1705769462684,-350.09036543,0.000399,4]
[312310437,1705769462693,-33142.113904,0.000399,2]
[312310438,1705769462703,-2000.0,0.000399,2]
[312310439,1705769462712,-7088.60788146,0.000399,2]
[312310440,1705769462721,-1500.0,0.00039968,10]
[312310441,1705769462730,-1000.0,0.0003997,2]
[312310442,1705769462739,-400.0,0.0003997,2]
[312310443,1705769462749,-20157.9257873,0.00039973,2]
[312310444,1705769462762,-500.0,0.00039987,30]
[312310445,1705769462772,-200.0,0.00039987,14]
[312310446,1705769462781,-3297.48423607,0.00039999,2]
[312310447,1705769462790,-150.01,0.00039999,2]
[312310448,1705769462800,-1001.4225,0.00039999,2]
[312310449,1705769462809,-100000.0,0.0004,10]
[312310450,1705769462819,-343155.88357433,0.0004,2]
[312310451,1705769462828,-8220.86729765,0.0004,5]
[312310452,1705769462837,-10683.04820629,0.0004,2]
[312310453,1705769462847,-2200.0,0.0004,4]
[312310454,1705769462856,-762.14,0.0004,14]
[312310455,1705769462865,-905.93,0.0004,14]
[312310456,1705769462874,-161.31808599,0.0004,2]
[312310457,1705769462883,-3347.71885564,0.0004,4]
[312310458,1705769462892,-3496.96335901,0.0004,5]
[312310459,1705769462901,-1355.11548665,0.0004,4]
[312310460,1705769462910,-5000.0,0.0004,7]
[312310461,1705769462919,-7859.42163644,0.0004,4]
[312310462,1705769462928,-67830.46348258,0.0004,4]
[312310463,1705769462937,-1082.45140834,0.0004,10]
[312310464,1705769462947,-322.0814563,0.0004,4]
[312310465,1705769462956,-27528.57279193,0.0004,4]
[312310466,1705769462966,-3200.0,0.0004,4]
[312310467,1705769462975,-2836.63023305,0.0004,4]
[312310468,1705769462985,-155.36600435,0.0004,7]
[312310469,1705769462994,-376.55859911,0.0004,14]
[312310470,1705769463003,-3231.89055485,0.0004,30]
[312310471,1705769463012,-190.55359364,0.0004,2]
[312310472,1705769463021,-350.0,0.0004,120]
[312310473,1705769463030,-155.0,0.0004,30]
[312310474,1705769463039,-400.0,0.0004,120]
[312310475,1705769463049,-200000.0,0.0004,10]
[312310477,1705769463058,-2000.0,0.0004,32]
[312310478,1705769463067,-2000.0,0.0004,32]
[312310479,1705769463076,-154.0,0.0004,7]
[312310480,1705769463086,-255.0,0.0004,12]
[312310481,1705769463095,-255.0,0.0004,12]
[312310482,1705769463104,-255.0,0.0004,12]
[312310483,1705769463114,-431.82,0.0004,14]
[312310484,1705769463123,-1687.98,0.0004,14]
[312310485,1705769463132,-1688.02,0.0004,14]
[312310486,1705769463141,-255.0,0.0004,12]
[312310487,1705769463150,-151.0,0.0004,7]
[312310488,1705769463160,-223.790203,0.0004,7]
[312310489,1705769463169,-223.790203,0.0004,7]
[312310490,1705769463178,-151.0,0.0004,7]
[312310491,1705769463188,-200.0,0.0004,16]
[312310492,1705769463197,-255.0,0.0004,12]
[312310493,1705769463207,-373.3368396,0.0004,10]
[312310494,1705769463216,-252.908527,0.0004,7]
[312310495,1705769463226,-151.0,0.0004,7]
[312310496,1705769463235,-4199.02767,0.0004,7]
[312310497,1705769463245,-4199.02767,0.0004,7]
[312310498,1705769463254,-151.0,0.0004,7]
[312310499,1705769463263,-1951.31922,0.0004,7]
[312310500,1705769463272,-1951.31922,0.0004,7]
[312310501,1705769463281,-151.0,0.0004,7]
[312310502,1705769463290,-1549.74933,0.0004,7]
[312310503,1705769463299,-1549.74933,0.0004,7]
[312310504,1705769463308,-255.0,0.0004,12]
[312310505,1705769463317,-151.0,0.0004,7]
[312310506,1705769463326,-151.0,0.0004,7]
[312310507,1705769463335,-1000.0,0.0004,15]
[312310508,1705769463344,-151.0,0.0004,7]
[312310509,1705769463353,-151.0,0.0004,7]
[312310510,1705769463362,-255.0,0.0004,12]
[312310511,1705769463371,-151.0,0.0004,7]
[312310512,1705769463380,-1000.0,0.000401,15]
[312310513,1705769463389,-84175.0,0.00040182,20]
[312310514,1705769463398,-168.09355494,0.00040182,20]
[312310515,1705769463408,-439.96894394,0.00040182,20]
[312310516,1705769463418,-1741.0,0.00040182,20]
[312310517,1705769463429,-428.0,0.00040182,20]
[312310518,1705769463438,-153.84,0.00040183,2]
[312310519,1705769463447,-186.13,0.00040183,2]
[312310520,1705769463456,-1850.0,0.000402,15]
[312310521,1705769463466,-250.0,0.000403,15]
[312310522,1705769463475,-869.79,0.00040349,15]
[312310523,1705769463484,-4535.82,0.000404,7]
[312310524,1705769463494,-2247.66,0.000404,7]
[312310525,1705769463503,-11054.48,0.000404,7]
[312310526,1705769463512,-150.0,0.00040447,2]
[312310527,1705769463523,-24163.49,0.000405,2]
[312310528,1705769463532,-3201.68318206,0.000405,13]
[312310529,1705769463541,-2000.0,0.000405,32]
[312310530,1705769463550,-391.39366023,0.000405,2]
[312310531,1705769463560,-187.0,0.000405,2]
[312310532,1705769463568,-2831.0,0.000405,2]
[312310533,1705769463577,-278.0,0.000405,2]
[312310534,1705769463586,-200.0,0.00040547,17]
[312310535,1705769463595,-84175.0,0.00040584,20]
[312310536,1705769463605,-1741.0,0.00040584,20]
[312310537,1705769463614,-428.0,0.00040584,20]
[312310538,1705769463623,-241.09,0.00040594,2]
[312310539,1705769463632,-941.64,0.00040645,2]
[312310540,1705769463641,-941.64,0.00040645,2]
[312310541,1705769463651,-270.98,0.00040645,2]
[312310542,1705769463660,-401.86,0.00040645,2]
[312310543,1705769463669,-401.86,0.0004069,2]
[312310544,1705769463678,-941.64,0.0004069,2]
[312310545,1705769463687,-401.86,0.0004069,2]
[312310546,1705769463697,-941.64,0.0004069,2]
[312310547,1705769463833,-941.64,0.0004069,2]
[312310548,1705769463843,-401.86,0.0004069,2]
[312310549,1705769463852,-941.64,0.0004069,2]
[312310550,1705769463861,-401.86,0.0004069,2]
[312310551,1705769463870,-941.64,0.0004069,2]
[312310552,1705769463879,-401.86,0.0004069,2]
[312310553,1705769463888,-401.86,0.0004069,2]
[312310554,1705769463897,-941.64,0.0004069,2]
[312310555,1705769463906,-401.86,0.0004069,2]
[312310556,1705769463915,-941.64,0.0004069,2]
[312310557,1705769463924,-401.86,0.0004069,2]
[312310558,1705769463934,-364.48,0.0004069,2]
[312310559,1705769463943,-401.86,0.0004069,2]
[312310560,1705769463952,-401.86,0.0004069,2]
[312310561,1705769463962,-401.86,0.0004069,2]
[312310562,1705769463971,-401.86,0.0004069,2]
[312310563,1705769463980,-392.47,0.0004069,2]
[312310564,1705769463989,-1000.0,0.00040733,2]
[312310565,1705769463999,-2100.0,0.00040785,10]
[312310566,1705769464008,-200.0,0.000408,14]
[312310567,1705769464017,-157.78,0.000408,4]
[312310568,1705769464029,-157.78,0.000408,4]
[312310569,1705769464038,-157.78,0.000408,4]
[312310570,1705769464047,-157.78,0.000408,4]
[312310571,1705769464056,-157.78,0.000408,4]
[312310572,1705769464066,-157.78,0.000408,4]
[312310573,1705769464075,-157.78,0.000408,4]
[312310574,1705769464084,-157.78,0.000408,4]
[312310575,1705769464094,-157.78,0.000408,4]
[312310576,1705769464103,-157.78,0.000408,4]
[312310577,1705769464112,-157.78,0.000408,4]
[312310578,1705769464121,-157.78,0.000408,4]
[312310579,1705769464131,-250.0,0.000408,16]
[312310580,1705769464141,-152.23,0.000408,4]
[312310581,1705769464150,-152.23,0.000408,4]
[312310582,1705769464160,-152.23,0.000408,4]
[312310583,1705769464169,-152.23,0.000408,4]
[312310584,1705769464178,-152.23,0.000408,4]
[312310585,1705769464188,-152.23,0.000408,4]
[312310586,1705769464197,-152.23,0.000408,4]
[312310587,1705769464206,-152.23,0.000408,4]
[312310588,1705769464215,-152.23,0.000408,4]
[312310589,1705769464225,-152.23,0.000408,4]
[312310590,1705769464234,-152.23,0.000408,4]
[312310591,1705769464243,-152.23,0.000408,4]
[312310592,1705769464253,-152.23,0.000408,4]
[312310593,1705769464262,-152.23,0.000408,4]
[312310594,1705769464271,-152.23,0.000408,4]
[312310595,1705769464280,-152.23,0.000408,4]
[312310596,1705769464289,-243.6145975,0.00040819,3]
[312310597,1705769464298,-229.00741884,0.00040819,3]
[312310598,1705769464308,-154.27609843,0.00040825,9]
[312310599,1705769464317,-2000.0,0.000409,2]
[312310600,1705769464326,-80353.89392626,0.000409,3]
[312310601,1705769464335,-588.0,0.00040919,2]
[312310602,1705769464344,-424.84,0.00040919,2]
[312310603,1705769464353,-816.2,0.00040919,2]
[312310604,1705769464362,-609.34,0.00040919,2]
[312310605,1705769464371,-301.89,0.00040919,2]
[312310606,1705769464380,-200.72,0.00040919,2]
[312310607,1705769464389,-151.47,0.00040919,2]
[312310608,1705769464398,-476.63,0.00040919,2]
[312310609,1705769464407,-836.48,0.00040919,2]
[312310610,1705769464416,-344.95,0.00040919,2]
[312310611,1705769464425,-150.0,0.00040919,2]
[312310612,1705769464434,-150.0,0.00040919,2]
[312310613,1705769464443,-150.0,0.00040919,2]
[312310614,1705769464453,-400.0,0.00040932,120]
[312310615,1705769464462,-2373.7075276,0.00040939,2]
[312310616,1705769464471,-11394.3827771,0.00040939,2]
[312310617,1705769464482,-408.72,0.00040964,2]
[312310618,1705769464491,-144944.9753594,0.00040967,2]
[312310619,1705769464500,-16871.4397434,0.00040967,2]
[312310620,1705769464509,-151.0,0.00040986,7]
[312310621,1705769464519,-84175.0,0.00040986,20]
[312310622,1705769464528,-1741.0,0.00040986,20]
[312310623,1705769464538,-428.0,0.00040986,20]
[312310624,1705769464547,-500.0,0.00040987,31]
[312310625,1705769464556,-500.0,0.00040987,32]
[312310626,1705769464565,-100000.0,0.00041,11]
[312310627,1705769464574,-7743.87573634,0.00041,4]
[312310628,1705769464584,-800.0,0.00041,2]
[312310629,1705769464593,-11000.0,0.00041,4]
[312310630,1705769464602,-282.8193808,0.00041,30]
[312310631,1705769464611,-212.48743376,0.00041,30]
[312310632,1705769464621,-2000.0,0.00041,32]
[312310633,1705769464630,-608.91,0.00041,2]
[312310634,1705769464639,-373.3368396,0.00041,11]
[312310635,1705769464649,-107108.1878498,0.00041039,2]
[312310636,1705769464658,-350.0,0.00041041,120]
[312310637,1705769464667,-151.0,0.00041067,7]
[312310638,1705769464677,-151.0,0.00041067,7]
[312310639,1705769464686,-151.0,0.00041067,7]
[312310640,1705769464696,-164.0,0.00041079,14]
[312310641,1705769464705,-500.0,0.00041095,31]
[312310642,1705769464715,-504.49130464,0.00041095,31]
[312310643,1705769464724,-502.11556302,0.00041095,31]
[312310644,1705769464733,-500.0,0.00041095,31]
[312310646,1705769464783,-500.0,0.00041095,31]
[312310647,1705769464791,-503.94564863,0.00041095,31]
[312310648,1705769464802,-303.04097926,0.00041095,31]
[312310649,1705769464812,-500.0,0.00041095,31]
[312310650,1705769464820,-500.0,0.00041095,31]
[312310651,1705769464830,-502.53214293,0.00041095,31]
[312310652,1705769464839,-500.0,0.00041095,31]
[312310653,1705769464849,-500.0,0.00041095,31]
[312310654,1705769464858,-500.0,0.00041095,31]
[312310655,1705769464867,-498.09118748,0.00041095,31]
[312310656,1705769464876,-500.87442276,0.00041095,31]
[312310657,1705769464884,-500.0,0.00041095,31]
[312310658,1705769464893,-500.0,0.00041095,31]
[312310659,1705769464902,-510.0,0.00041095,120]
[312310660,1705769464911,-501.55988315,0.00041095,31]
[312310661,1705769464920,-500.0,0.00041095,15]
[312310662,1705769464929,-500.0,0.00041095,31]
[312310663,1705769464938,-500.0,0.00041095,31]
[312310664,1705769464947,-313.22430223,0.00041095,31]
[312310665,1705769464957,-500.0,0.00041095,31]
[312310666,1705769464966,-500.0,0.00041095,31]
[312310667,1705769464975,-500.0,0.00041095,31]
[312310668,1705769464984,-500.0,0.00041095,31]
[312310669,1705769464993,-553.77176779,0.00041095,31]
[312310670,1705769465002,-500.0,0.00041095,31]
[312310671,1705769465012,-500.0,0.00041095,31]
[312310672,1705769465022,-500.0,0.00041095,31]
[312310673,1705769465032,-500.0,0.00041095,31]
[312310674,1705769465044,-500.0,0.00041095,2]
[312310675,1705769465053,-500.0,0.00041095,31]
[312310676,1705769465063,-500.0,0.00041095,31]
[312310677,1705769465073,-500.0,0.00041095,31]
[312310678,1705769465082,-500.0,0.00041095,31]
[312310679,1705769465092,-500.0,0.00041095,31]
[312310680,1705769465101,-500.0,0.00041095,31]
[312310681,1705769465111,-509.54896197,0.00041095,31]
[312310682,1705769465120,-500.0,0.00041095,31]
[312310683,1705769465130,-500.0,0.00041095,31]
[312310684,1705769465140,-500.0,0.00041095,31]
[312310685,1705769465149,-500.0,0.00041095,31]
[312310686,1705769465159,-500.0,0.00041095,31]
[312310687,1705769465168,-500.0,0.00041095,31]
[312310688,1705769465178,-500.0,0.00041095,31]
[312310689,1705769465187,-500.0,0.00041095,31]
[312310691,1705769465197,-500.0,0.00041095,31]
[312310692,1705769465206,-500.0,0.00041095,31]
[312310693,1705769465215,-500.0,0.00041095,31]
[312310694,1705769465224,-500.0,0.00041095,31]
[312310695,1705769465234,-500.0,0.00041095,31]
[312310696,1705769465243,-505.952318,0.00041095,31]
[312310697,1705769465253,-500.0,0.00041095,31]
[312310698,1705769465262,-187.48558605,0.00041095,31]
[312310699,1705769465271,-500.0,0.00041095,31]
[312310700,1705769465280,-500.0,0.00041095,31]
[312310701,1705769465290,-500.0,0.00041095,31]
[312310702,1705769465299,-500.0,0.00041095,31]
[312310703,1705769465309,-500.0,0.00041095,31]
[312310704,1705769465318,-506.99184903,0.00041095,31]
[312310705,1705769465328,-500.0,0.00041095,31]
[312310706,1705769465338,-500.0,0.00041095,31]
[312310707,1705769465347,-234.23908884,0.00041095,31]
[312310708,1705769465356,-500.0,0.00041095,31]
[312310709,1705769465366,-500.0,0.00041095,31]
[312310710,1705769465375,-525.34970495,0.00041095,31]
[312310711,1705769465385,-500.0,0.00041095,31]
[312310712,1705769465394,-504.55351672,0.00041095,31]
[312310713,1705769465404,-500.0,0.00041095,31]
[312310714,1705769465414,-522.75127143,0.00041095,31]
[312310715,1705769465423,-500.0,0.00041095,31]
[312310716,1705769465442,-500.0,0.00041095,30]
[312310717,1705769465452,-500.0,0.00041095,31]
[312310718,1705769465461,-500.0,0.00041095,31]
[312310719,1705769465471,-500.0,0.00041095,31]
[312310720,1705769465480,-503.32921575,0.00041095,31]
[312310721,1705769465489,-500.0,0.00041095,31]
[312310722,1705769465499,-1000.0,0.00041095,31]
[312310723,1705769465508,-505.8286944,0.00041095,31]
[312310724,1705769465517,-500.0,0.00041095,31]
[312310725,1705769465527,-1000.0,0.00041095,2]
[312310726,1705769465536,-500.0,0.00041095,31]
[312310727,1705769465545,-500.0,0.00041095,31]
[312310728,1705769465554,-500.0,0.00041095,31]
[312310729,1705769465563,-504.30613217,0.00041095,31]
[312310730,1705769465573,-500.0,0.00041095,31]
[312310731,1705769465582,-500.0,0.00041095,31]
[312310732,1705769465592,-500.0,0.00041095,31]
[312310733,1705769465601,-500.0,0.00041095,31]
[312310734,1705769465611,-500.0,0.00041095,31]
[312310735,1705769465620,-1000.0,0.00041095,31]
[312310736,1705769465629,-500.0,0.00041095,31]
[312310737,1705769465638,-500.0,0.00041095,31]
[312310738,1705769465648,-500.0,0.00041095,31]
[312310739,1705769465657,-500.0,0.00041095,31]
[312310740,1705769465666,-500.0,0.00041095,31]
[312310741,1705769465676,-500.0,0.00041095,31]
[312310742,1705769465686,-369.0,0.00041095,31]
[312310743,1705769465696,-500.0,0.00041095,31]
[312310744,1705769465705,-174.56544921,0.00041095,31]
[312310745,1705769465714,-500.0,0.00041095,31]
[312310746,1705769465724,-508.17807827,0.00041095,31]
[312310747,1705769465733,-500.0,0.00041095,31]
[312310748,1705769465742,-500.0,0.00041095,31]
[312310749,1705769465751,-500.0,0.00041095,31]
[312310750,1705769465763,-500.0,0.00041095,31]
[312310751,1705769465772,-500.0,0.00041095,31]
[312310752,1705769465781,-332.27090565,0.00041095,31]
[312310753,1705769465790,-500.0,0.00041095,31]
[312310754,1705769465799,-500.0,0.00041095,31]
[312310755,1705769465809,-500.0,0.00041095,31]
[312310756,1705769465818,-500.0,0.00041095,31]
[312310757,1705769465828,-500.0,0.00041095,31]
[312310758,1705769465838,-500.0,0.00041095,31]
[312310759,1705769465849,-500.0,0.00041095,30]
[312310760,1705769465858,-500.0,0.00041095,31]
[312310761,1705769465867,-500.0,0.00041095,31]
[312310762,1705769465876,-500.0,0.00041095,31]
[312310763,1705769465885,-500.0,0.00041095,31]
[312310764,1705769465895,-500.0,0.00041095,31]
[312310765,1705769465904,-500.0,0.00041095,31]
[312310766,1705769465913,-500.0,0.00041095,31]
[312310767,1705769465922,-500.0,0.00041095,31]
[312310768,1705769466057,-500.0,0.00041095,31]
[312310769,1705769466067,-567.07333342,0.00041095,31]
[312310770,1705769466077,-500.0,0.00041095,31]
[312310771,1705769466087,-500.0,0.00041095,31]
[312310772,1705769466097,-525.28272739,0.00041095,31]
[312310773,1705769466107,-500.0,0.00041095,31]
[312310774,1705769466117,-500.0,0.00041095,31]
[312310775,1705769466127,-500.0,0.00041095,31]
[312310776,1705769466137,-571.28490514,0.00041095,31]
[312310777,1705769466146,-500.0,0.00041095,31]
[312310778,1705769466156,-500.0,0.00041095,31]
[312310779,1705769466165,-500.0,0.00041095,31]
[312310780,1705769466175,-500.0,0.00041095,31]
[312310781,1705769466184,-500.0,0.00041095,31]